fUST/lending_fUST_20250829
["ID","MTS","AMOUNT","RATE_DAILY","PERIOD"]
[381909155,1756401051066,-577.33,0.0002,2]
[381909156,1756401051076,-480.0,0.0002,2]
[381909157,1756401051087,-480.0,0.0002,2]
[381909158,1756401051098,-151.0,0.0002,2]
[381909159,1756401051109,-883.04,0.0002,2]
[381909160,1756401051120,-665.23,0.0002,2]
[381909161,1756401051135,-480.0,0.0002,2]
[381909162,1756401051149,-480.0,0.0002,2]
[381909163,1756401051160,-219.14901394,0.0002,2]
[381909164,1756401051171,-480.0,0.0002,2]
[381909165,1756401051182,-480.0,0.0002,2]
[381909166,1756401051196,-480.0,0.0002,2]
[381909167,1756401051206,-512.78,0.0002,2]
[381909168,1756401051220,-1551.4,0.0002,2]
[381909169,1756401051231,-1010.73,0.0002,2]
[381909170,1756401051243,-480.0,0.0002,2]
[381909171,1756401051255,-480.0,0.0002,2]
[381909172,1756401051266,-480.0,0.0002,2]
[381909173,1756401051276,-480.0,0.0002,2]
[381909174,1756401051287,-480.0,0.0002,2]
[381909175,1756401051298,-480.0,0.0002,2]
[381909176,1756401051310,-1070.38,0.0002,2]
[381909177,1756401051321,-1204.8,0.0002,2]
[381909178,1756401051331,-480.0,0.0002,2]
[381909179,1756401051344,-1098.05,0.0002,2]
[381909180,1756401051357,-546.07,0.0002,2]
[381909181,1756401051369,-480.0,0.0002,2]
[381909182,1756401051381,-480.0,0.0002,2]
[381909183,1756401051391,-480.0,0.0002,2]
[381909184,1756401051403,-480.0,0.0002,2]
[381909185,1756401051414,-1647.13,0.0002,2]
[381909186,1756401051426,-633.08,0.0002,2]
[381909187,1756401051436,-480.0,0.0002,2]
[381909188,1756401051447,-480.0,0.0002,2]
[381909189,1756401051639,-770.96,0.0002,2]
[381909190,1756401051652,-860.37,0.0002,2]
[381909191,1756401051661,-1770.7,0.0002,2]
[381909192,1756401051671,-998.59,0.0002,2]
[381909193,1756401051682,-480.0,0.0002,2]
[381909194,1756401051691,-480.0,0.0002,2]
[381909195,1756401051700,-480.0,0.0002,2]
[381909196,1756401051709,-480.0,0.0002,2]
[381909197,1756401051718,-480.0,0.0002,2]
[381909198,1756401051727,-565.55,0.0002,2]
[381909199,1756401051736,-480.0,0.0002,2]
[381909200,1756401051745,-480.0,0.0002,2]
[381909201,1756401051754,-505.96,0.0002,2]
[381909202,1756401051763,-586.55,0.0002,2]
[381909203,1756401051773,-1362.06,0.0002,2]
[381909204,1756401051782,-480.0,0.0002,2]
[381909205,1756401051791,-1000.0,0.00020021,2]
[381909206,1756401051800,-500.0,0.00020021,2]
[381909207,1756401051809,-500.0,0.00020021,2]
[381909208,1756401051818,-506.19980553,0.00020021,2]
[381909209,1756401051827,-500.0,0.00020021,2]
[381909210,1756401051836,-1000.0,0.00020021,2]
[381909211,1756401051845,-644.10472253,0.00020021,2]
[381909212,1756401051854,-1000.0,0.00020021,2]
[381909213,1756401051863,-1000.0,0.00020021,2]
[381909214,1756401051872,-454.378,0.00020058,2]
[381909215,1756401051883,-298.34462075,0.00020088,2]
[381909216,1756401051892,-160.0,0.00020096,2]
[381909217,1756401051901,-4000.0,0.00020182,2]
[381909218,1756401051910,-151.0,0.00020182,2]
[381909219,1756401051919,-151.0,0.00020182,2]
[381909220,1756401051929,-151.0,0.00020182,2]
[381909221,1756401051938,-234.431541,0.00020182,2]
[381909222,1756401051947,-151.0,0.00020182,2]
[381909223,1756401051956,-189.860335,0.00020184,20]
[381909224,1756401051965,-153.198706,0.00020184,20]
[381909225,1756401051974,-200.083026,0.00020187,2]
[381909226,1756401051983,-151.0,0.000202,4]
[381909227,1756401051993,-730.0,0.00020229,2]
[381909228,1756401052002,-151.0,0.00020229,2]
[381909229,1756401052011,-151.0,0.00020229,2]
[381909230,1756401052020,-152.72881078,0.00020229,2]
[381909231,1756401052029,-265.33118814,0.00020256,2]
[381909232,1756401052039,-168.0,0.00020263,2]
[381909233,1756401052048,-510.61842571,0.00020273,2]
[381909234,1756401052057,-480.0,0.00020273,2]
[381909235,1756401052066,-480.0,0.00020273,2]
[381909236,1756401052075,-480.0,0.00020273,2]
[381909237,1756401052084,-480.0,0.00020273,2]
[381909238,1756401052094,-480.0,0.00020273,2]
[381909239,1756401052104,-480.0,0.00020273,2]
[381909240,1756401052113,-480.0,0.00020273,2]
[381909241,1756401052123,-151.0,0.00020273,2]
[381909242,1756401052133,-480.0,0.00020273,2]
[381909243,1756401052143,-480.0,0.00020273,2]
[381909244,1756401052156,-151.0,0.00020273,2]
[381909245,1756401052166,-722.61,0.00020273,2]
[381909246,1756401052175,-480.0,0.00020273,2]
[381909247,1756401052185,-239.20832343,0.00020273,2]
[381909248,1756401052195,-151.0,0.00020273,2]
[381909249,1756401052204,-480.0,0.00020273,2]
[381909250,1756401052213,-480.0,0.00020273,2]
[381909251,1756401052223,-151.0,0.00020273,2]
[381909252,1756401052233,-267.74215833,0.00020273,2]
[381909253,1756401052243,-596.83,0.00020273,2]
[381909254,1756401052252,-480.0,0.00020273,2]
[381909255,1756401052261,-480.0,0.00020273,2]
[381909256,1756401052270,-480.0,0.00020273,2]
[381909257,1756401052279,-480.0,0.00020273,2]
[381909258,1756401052288,-480.0,0.00020273,2]
[381909259,1756401052298,-480.0,0.00020273,2]
[381909260,1756401052307,-480.0,0.00020273,2]
[381909261,1756401052316,-136.89894605,0.00020273,2]
[381909262,1756401052475,-343.10105395,0.00020273,2]
[381909263,1756401052485,-480.0,0.00020273,2]
[381909264,1756401052495,-480.0,0.00020273,2]
[381909265,1756401052504,-480.0,0.00020273,2]
[381909266,1756401052513,-166.89895533,0.00020273,2]
[381909267,1756401052525,-313.10104467,0.00020273,2]
[381909268,1756401052534,-537.58,0.00020273,2]
[381909269,1756401052543,-480.0,0.00020273,2]
[381909270,1756401052553,-480.0,0.00020273,2]
[381909271,1756401052562,-480.0,0.00020273,2]
[381909272,1756401052571,-480.0,0.00020273,2]
[381909273,1756401052581,-480.0,0.00020273,2]
[381909274,1756401052590,-480.0,0.00020273,2]
[381909275,1756401052600,-480.0,0.00020273,2]
[381909276,1756401052609,-83.49816855,0.00020273,2]
[381909277,1756401052625,-396.50183145,0.00020273,2]
[381909278,1756401052634,-480.0,0.00020273,2]
[381909279,1756401052646,-480.0,0.00020273,2]
[381909280,1756401052658,-480.0,0.00020273,2]
[381909281,1756401052667,-480.0,0.00020273,2]
[381909282,1756401052676,-480.0,0.00020273,2]
[381909283,1756401052685,-480.0,0.00020273,2]
[381909284,1756401052695,-480.0,0.00020273,2]
[381909285,1756401052704,-480.0,0.00020273,2]
[381909286,1756401052714,-488.35,0.00020273,2]
[381909287,1756401052723,-289.13682701,0.00020273,2]
[381909288,1756401052733,-480.0,0.00020273,2]
[381909289,1756401052742,-480.0,0.00020273,2]
[381909290,1756401052753,-746.96,0.00020273,2]
[381909291,1756401052762,-480.0,0.00020273,2]
[381909292,1756401052771,-480.0,0.00020273,2]
[381909293,1756401052781,-480.0,0.00020273,2]
[381909294,1756401052791,-480.0,0.00020273,2]
[381909295,1756401052801,-480.0,0.00020273,2]
[381909296,1756401052810,-480.0,0.00020273,2]
[381909297,1756401052819,-480.0,0.00020273,2]
[381909298,1756401052827,-480.0,0.00020273,2]
[381909299,1756401052836,-480.0,0.00020273,2]
[381909300,1756401052845,-1733.57,0.00020273,2]
[381909301,1756401052854,-480.0,0.00020273,2]
[381909302,1756401052864,-3282.26,0.00020273,2]
[381909303,1756401052874,-1039.86,0.00020273,2]
[381909304,1756401052883,-480.0,0.00020273,2]
[381909305,1756401052893,-480.0,0.00020273,2]
[381909306,1756401052902,-950.48107617,0.00020273,2]
[381909307,1756401052914,-998.84892383,0.00020273,2]
[381909308,1756401052923,-1458.74,0.00020273,2]
[381909309,1756401052933,-480.0,0.00020273,2]
[381909310,1756401052943,-480.0,0.00020273,2]
[381909311,1756401052952,-1332.44,0.00020273,2]
[381909312,1756401052962,-2130.55,0.00020273,2]
[381909313,1756401052971,-480.0,0.00020273,2]
[381909314,1756401052981,-480.0,0.00020273,2]
[381909315,1756401052990,-480.0,0.00020273,2]
[381909316,1756401052999,-596.01,0.00020273,2]
[381909317,1756401053008,-480.0,0.00020273,2]
[381909318,1756401053017,-858.07,0.00020273,2]
[381909319,1756401053027,-480.0,0.00020273,2]
[381909320,1756401053036,-491.57,0.00020273,2]
[381909321,1756401053046,-200.44918293,0.00020273,2]
[381909322,1756401053057,-407.91081707,0.00020273,2]
[381909323,1756401053066,-480.0,0.00020273,2]
[381909324,1756401053075,-341.00959285,0.00020273,2]
[381909325,1756401053087,-455.18249544,0.00020273,2]
[381909326,1756401053098,-243.34791171,0.00020273,2]
[381909327,1756401053107,-660.08,0.00020273,2]
[381909328,1756401053117,-577.33,0.00020273,2]
[381909329,1756401053127,-480.0,0.00020273,2]
[381909330,1756401053137,-883.04,0.00020273,2]
[381909331,1756401053146,-154.64478428,0.00020273,2]
[381909332,1756401053160,-510.58521572,0.00020273,2]
[381909333,1756401053170,-142.07548572,0.00020273,2]
[381909334,1756401053202,-337.92451428,0.00020273,2]
[381909335,1756401053211,-480.0,0.00020273,2]
[381909336,1756401053221,-480.0,0.00020273,2]
[381909337,1756401053230,-512.78,0.00020273,2]
[381909338,1756401053240,-1551.4,0.00020273,2]
[381909339,1756401053249,-1010.73,0.00020273,2]
[381909340,1756401053259,-480.0,0.00020273,2]
[381909341,1756401053267,-558.29,0.00020273,2]
[381909342,1756401053277,-1070.38,0.00020273,2]
[381909343,1756401053286,-1204.8,0.00020273,2]
[381909344,1756401053295,-232.30763531,0.00020273,2]
[381909345,1756401053307,-364.66407202,0.00020273,2]
[381909346,1756401053316,-1098.05,0.00020273,2]
[381909347,1756401053326,-480.0,0.00020273,2]
[381909348,1756401053336,-151.0,0.00020273,2]
[381909349,1756401053345,-151.0,0.00020273,2]
[381909350,1756401053355,-151.0,0.00020273,2]
[381909351,1756401053364,-151.0,0.00020273,2]
[381909352,1756401053374,-151.0,0.00020273,2]
[381909353,1756401053384,-480.0,0.00020273,2]
[381909354,1756401053394,-165.554696,0.00020273,2]
[381909355,1756401053402,-480.0,0.00020273,2]
[381909356,1756401053411,-480.0,0.00020273,2]
[381909357,1756401053420,-1647.13,0.00020273,2]
[381909358,1756401053430,-633.08,0.00020273,2]
[381909359,1756401053440,-506.62,0.00020273,2]
[381909360,1756401053451,-155.1116,0.00020273,2]
[381909361,1756401053460,-480.0,0.00020273,2]
[381909362,1756401053470,-770.96,0.00020273,2]
[381909363,1756401053479,-860.37,0.00020273,2]
[381909364,1756401053489,-1770.7,0.00020273,2]
[381909365,1756401053499,-998.59,0.00020273,2]
[381909366,1756401053509,-151.0,0.00020273,2]
[381909367,1756401053518,-480.0,0.00020273,2]
[381909368,1756401053528,-151.0,0.00020273,2]
[381909369,1756401053538,-151.0,0.00020273,2]
[381909370,1756401053547,-480.0,0.00020273,2]
[381909371,1756401053557,-250.453935,0.00020273,2]
[381909372,1756401053566,-480.0,0.00020273,2]
[381909373,1756401053576,-480.0,0.00020273,2]
[381909374,1756401053586,-565.55,0.00020273,2]
[381909375,1756401053595,-480.0,0.00020273,2]
[381909376,1756401053604,-505.96,0.00020273,2]
[381909377,1756401053614,-586.55,0.00020273,2]
[381909378,1756401053623,-1362.06,0.00020273,2]
[381909379,1756401053633,-480.0,0.00020273,2]
[381909380,1756401053643,-504.17753169,0.00020321,2]
[381909381,1756401053652,-267.0,0.00020337,2]
[381909382,1756401053661,-189.860335,0.00020368,20]
[381909383,1756401053670,-153.198706,0.00020368,20]
[381909384,1756401053679,-189.860335,0.000204,10]
[381909385,1756401053688,-153.198706,0.000204,10]
[381909386,1756401053697,-151.0,0.00020491,2]
[381909387,1756401053707,-151.0,0.00020491,2]
[381909388,1756401053719,-151.0,0.00020491,2]
[381909389,1756401053728,-151.0,0.00020491,2]
[381909390,1756401053738,-151.0,0.00020491,2]
[381909391,1756401053748,-151.0,0.00020491,2]
[381909392,1756401053757,-151.0,0.00020491,2]
[381909393,1756401053767,-730.0,0.00020503,2]
[381909394,1756401053776,-245.0,0.00020503,2]
[381909395,1756401053785,-198.0,0.00020503,2]
[381909396,1756401053795,-500.0,0.00020521,2]
[381909397,1756401053804,-1000.0,0.00020521,2]
[381909398,1756401053813,-151.0,0.00020521,2]
[381909399,1756401053823,-150.0,0.00020525,2]
[381909400,1756401053834,-250.0,0.00020525,2]
[381909401,1756401053843,-207.833,0.00020525,2]
[381909402,1756401053852,-222.869,0.00020525,2]
[381909403,1756401053863,-204.131,0.00020525,2]
[381909404,1756401053872,-249.1,0.00020525,2]
[381909405,1756401053882,-250.119,0.00020525,2]
[381909406,1756401053891,-261.808,0.00020525,2]
[381909407,1756401053900,-220.618,0.00020525,2]
[381909408,1756401053910,-297.242015,0.00020525,2]
[381909409,1756401053919,-151.0,0.00020525,2]
[381909410,1756401053928,-194.72792766,0.00020547,2]
[381909411,1756401053937,-480.0,0.00020547,2]
[381909412,1756401053946,-151.0,0.00020547,2]
[381909413,1756401053956,-151.0,0.00020547,2]
[381909414,1756401053966,-480.0,0.00020547,2]
[381909415,1756401053977,-480.0,0.00020547,2]
[381909416,1756401053986,-329.92,0.00020547,2]
[381909417,1756401053995,-480.0,0.00020547,2]
[381909418,1756401054005,-480.0,0.00020547,2]
[381909419,1756401054014,-480.0,0.00020547,2]
[381909420,1756401054023,-480.0,0.00020547,2]
[381909421,1756401054033,-722.61,0.00020547,2]
[381909422,1756401054042,-402.64,0.00020547,2]
[381909423,1756401054051,-480.0,0.00020547,2]
[381909424,1756401054061,-480.0,0.00020547,2]
[381909425,1756401054070,-596.83,0.00020547,2]
[381909426,1756401054080,-480.0,0.00020547,2]
[381909427,1756401054089,-480.0,0.00020547,2]
[381909428,1756401054098,-480.0,0.00020547,2]
[381909429,1756401054108,-480.0,0.00020547,2]
[381909430,1756401054117,-592.53,0.00020547,2]
[381909431,1756401054127,-537.58,0.00020547,2]
[381909432,1756401054136,-480.0,0.00020547,2]
[381909433,1756401054145,-480.0,0.00020547,2]
[381909434,1756401054159,-480.0,0.00020547,2]
[381909435,1756401054168,-151.0,0.00020547,2]
[381909436,1756401054177,-151.0,0.00020547,2]
[381909437,1756401054187,-480.0,0.00020547,2]
[381909438,1756401054197,-480.0,0.00020547,2]
[381909439,1756401054206,-573.5,0.00020547,2]
[381909440,1756401054216,-480.0,0.00020547,2]
[381909441,1756401054226,-480.0,0.00020547,2]
[381909442,1756401054238,-480.0,0.00020547,2]
[381909443,1756401054247,-480.0,0.00020547,2]
[381909444,1756401054257,-746.96,0.00020547,2]
[381909445,1756401054268,-480.0,0.00020547,2]
[381909446,1756401054278,-151.0,0.00020547,2]
[381909447,1756401054289,-248.374576,0.00020547,2]
[381909448,1756401054299,-151.0,0.00020547,2]
[381909449,1756401054310,-480.0,0.00020547,2]
[381909450,1756401054320,-151.0,0.00020547,2]
[381909451,1756401054330,-207.79579427,0.00020547,2]
[381909452,1756401054339,-480.0,0.00020547,2]
[381909453,1756401054349,-480.0,0.00020547,2]
[381909454,1756401054359,-1733.57,0.00020547,2]
[381909455,1756401054368,-480.0,0.00020547,2]
[381909456,1756401054377,-3282.26,0.00020547,2]
[381909457,1756401054386,-1039.86,0.00020547,2]
[381909458,1756401054396,-480.0,0.00020547,2]
[381909459,1756401054406,-490.10356867,0.00020547,2]
[381909460,1756401054415,-1949.33,0.00020547,2]
[381909461,1756401054425,-1458.74,0.00020547,2]
[381909462,1756401054434,-173.73261401,0.00020547,2]
[381909463,1756401054546,-306.26738599,0.00020547,2]
[381909464,1756401054556,-480.0,0.00020547,2]
[381909465,1756401054566,-29.32034049,0.00020547,2]
[381909466,1756401054578,-1303.11965951,0.00020547,2]
[381909467,1756401054587,-2130.55,0.00020547,2]
[381909468,1756401054596,-480.0,0.00020547,2]
[381909469,1756401054606,-480.0,0.00020547,2]
[381909470,1756401054616,-596.01,0.00020547,2]
[381909471,1756401054625,-480.0,0.00020547,2]
[381909472,1756401054636,-858.07,0.00020547,2]
[381909473,1756401054784,-480.0,0.00020547,2]
[381909474,1756401054794,-608.36,0.00020547,2]
[381909475,1756401054803,-491.57,0.00020547,2]
[381909476,1756401054812,-480.0,0.00020547,2]
[381909477,1756401054822,-1039.54,0.00020547,2]
[381909478,1756401054831,-660.08,0.00020547,2]
[381909479,1756401054841,-577.33,0.00020547,2]
[381909480,1756401054851,-480.0,0.00020547,2]
[381909481,1756401054861,-883.04,0.00020547,2]
[381909482,1756401054870,-480.0,0.00020547,2]
[381909483,1756401054881,-665.23,0.00020547,2]
[381909484,1756401054890,-480.0,0.00020547,2]
[381909485,1756401054900,-480.0,0.00020547,2]
[381909486,1756401054909,-512.78,0.00020547,2]
[381909487,1756401054920,-1551.4,0.00020547,2]
[381909488,1756401054929,-1010.73,0.00020547,2]
[381909489,1756401054938,-480.0,0.00020547,2]
[381909490,1756401054947,-1070.38,0.00020547,2]
[381909491,1756401054957,-1204.8,0.00020547,2]
[381909492,1756401054971,-1098.05,0.00020547,2]
[381909493,1756401054980,-480.0,0.00020547,2]
[381909494,1756401054992,-480.0,0.00020547,2]
[381909495,1756401055003,-480.0,0.00020547,2]
[381909496,1756401055012,-239.07410289,0.00020547,2]
[381909497,1756401055023,-1647.13,0.00020547,2]
[381909498,1756401055032,-633.08,0.00020547,2]
[381909499,1756401055042,-480.0,0.00020547,2]
[381909500,1756401055052,-770.96,0.00020547,2]
[381909501,1756401055062,-860.37,0.00020547,2]
[381909502,1756401055072,-1770.7,0.00020547,2]
[381909503,1756401055082,-998.59,0.00020547,2]
[381909504,1756401055091,-438.89596214,0.00020547,2]
[381909505,1756401055101,-616.69066057,0.00020547,2]
[381909506,1756401055111,-480.0,0.00020547,2]
[381909507,1756401055120,-480.0,0.00020547,2]
[381909508,1756401055129,-565.55,0.00020547,2]
[381909509,1756401055138,-480.0,0.00020547,2]
[381909510,1756401055149,-505.96,0.00020547,2]
[381909511,1756401055160,-586.55,0.00020547,2]
[381909512,1756401055169,-1362.06,0.00020547,2]
[381909513,1756401055178,-480.0,0.00020547,2]
[381909514,1756401055187,-189.860335,0.00020552,20]
[381909515,1756401055197,-153.198706,0.00020552,20]
[381909516,1756401055207,-1500.0,0.00020568,2]
[381909517,1756401055215,-1500.0,0.00020568,2]
[381909518,1756401055226,-1500.0,0.00020568,2]
[381909519,1756401055236,-189.860335,0.00020583,3]
[381909520,1756401055245,-153.198706,0.00020583,3]
[381909521,1756401055256,-260.0,0.00020644,2]
[381909522,1756401055265,-189.860335,0.00020736,20]
[381909523,1756401055274,-153.198706,0.00020736,20]
[381909524,1756401055284,-730.0,0.00020777,2]
[381909525,1756401055294,-189.860335,0.00020801,10]
[381909526,1756401055303,-153.198706,0.00020801,10]
[381909527,1756401055312,-168.0,0.00020811,2]
[381909528,1756401055321,-151.0,0.00020821,2]
[381909529,1756401055331,-480.0,0.00020821,2]
[381909530,1756401055340,-480.0,0.00020821,2]
[381909531,1756401055350,-480.0,0.00020821,2]
[381909532,1756401055359,-480.0,0.00020821,2]
[381909533,1756401055368,-480.0,0.00020821,2]
[381909534,1756401055378,-480.0,0.00020821,2]
[381909535,1756401055388,-480.0,0.00020821,2]
[381909536,1756401055397,-722.61,0.00020821,2]
[381909537,1756401055406,-480.0,0.00020821,2]
[381909538,1756401055415,-155.84454918,0.00020821,2]
[381909539,1756401055428,-324.15545082,0.00020821,2]
[381909540,1756401055438,-596.83,0.00020821,2]
[381909541,1756401055447,-151.0,0.00020821,2]
[381909542,1756401055456,-151.0,0.00020821,2]
[381909543,1756401055465,-480.0,0.00020821,2]
[381909544,1756401055475,-480.0,0.00020821,2]
[381909545,1756401055484,-490.1,0.00020821,2]
[381909546,1756401055494,-151.0,0.00020821,2]
[381909547,1756401055503,-151.0,0.00020821,2]
[381909548,1756401055512,-537.58,0.00020821,2]
[381909549,1756401055521,-480.0,0.00020821,2]
[381909550,1756401055531,-480.0,0.00020821,2]
[381909551,1756401055541,-480.0,0.00020821,2]
[381909552,1756401055551,-480.0,0.00020821,2]
[381909553,1756401055560,-206.63454898,0.00020821,2]
[381909554,1756401055572,-273.36545102,0.00020821,2]
[381909555,1756401055581,-160.31779444,0.00020821,2]
[381909556,1756401055648,-480.0,0.00019178,2]
[381909557,1756401055658,-151.0,0.000199,2]
[381909558,1756401055669,-151.0,0.00020273,2]
[381909559,1756401055678,-72.95877278,0.00020821,2]
[381909560,1756401055689,-298.40379617,0.00020821,2]
[381909561,1756401055698,-480.0,0.00020821,2]
[381909562,1756401055707,-480.0,0.00020821,2]
[381909563,1756401055716,-37.89964254,0.00020821,2]
[381909564,1756401055728,-619.90353251,0.00020821,2]
[381909565,1756401055744,-386.40786811,0.00019452,2]
[381909566,1756401055756,-157.74973841,0.00019452,2]
[381909567,1756401055765,-89.15682495,0.00020821,2]
[381909568,1756401055777,-480.0,0.00020821,2]
[381909569,1756401055786,-480.0,0.00020821,2]
[381909570,1756401055795,-480.0,0.00020821,2]
[381909571,1756401055806,-480.0,0.00020821,2]
[381909572,1756401055815,-371.07111953,0.00020821,2]
[381909573,1756401055824,-3282.26,0.00020821,2]
[381909574,1756401055834,-1039.86,0.00020821,2]
[381909575,1756401055844,-1949.33,0.00020821,2]
[381909576,1756401055854,-1458.74,0.00020821,2]
[381909577,1756401055864,-480.0,0.00020821,2]
[381909578,1756401055873,-480.0,0.00020821,2]
[381909579,1756401055883,-1332.44,0.00020821,2]
[381909580,1756401055892,-2130.55,0.00020821,2]
[381909581,1756401055902,-480.0,0.00020821,2]
[381909582,1756401055913,-480.0,0.00020821,2]
[381909583,1756401055923,-596.01,0.00020821,2]
[381909584,1756401055933,-480.0,0.00020821,2]
[381909585,1756401055942,-858.07,0.00020821,2]
[381909586,1756401055953,-593.54520015,0.00020821,2]
[381909587,1756401055963,-608.36,0.00020821,2]
[381909588,1756401055975,-491.57,0.00020821,2]
[381909589,1756401055988,-480.0,0.00020821,2]
[381909590,1756401055998,-1039.54,0.00020821,2]
[381909591,1756401056008,-660.08,0.00020821,2]
[381909592,1756401056018,-577.33,0.00020821,2]
[381909593,1756401056027,-480.0,0.00020821,2]
[381909594,1756401056037,-883.04,0.00020821,2]
[381909595,1756401056047,-480.0,0.00020821,2]
[381909596,1756401056059,-665.23,0.00020821,2]
[381909597,1756401056070,-480.0,0.00020821,2]
[381909598,1756401056080,-480.0,0.00020821,2]
[381909599,1756401056091,-512.78,0.00020821,2]
[381909600,1756401056101,-1551.4,0.00020821,2]
[381909601,1756401056111,-1010.73,0.00020821,2]
[381909602,1756401056120,-480.0,0.00020821,2]
[381909603,1756401056130,-1070.38,0.00020821,2]
[381909604,1756401056140,-1204.8,0.00020821,2]
[381909605,1756401056152,-1098.05,0.00020821,2]
[381909606,1756401056162,-628.75878523,0.00020821,2]
[381909607,1756401056171,-480.0,0.00020821,2]
[381909608,1756401056182,-480.0,0.00020821,2]
[381909609,1756401056193,-1647.13,0.00020821,2]
[381909610,1756401056202,-633.08,0.00020821,2]
[381909611,1756401056212,-770.96,0.00020821,2]
[381909612,1756401056222,-480.0,0.00020821,2]
[381909613,1756401056232,-860.37,0.00020821,2]
[381909614,1756401056242,-1770.7,0.00020821,2]
[381909615,1756401056251,-998.59,0.00020821,2]
[381909616,1756401056261,-480.0,0.00020821,2]
[381909617,1756401056271,-480.0,0.00020821,2]
[381909618,1756401056280,-565.55,0.00020821,2]
[381909619,1756401056290,-480.0,0.00020821,2]
[381909620,1756401056301,-505.96,0.00020821,2]
[381909621,1756401056312,-586.55,0.00020821,2]
[381909622,1756401056322,-1362.06,0.00020821,2]
[381909623,1756401056331,-480.0,0.00020821,2]
[381909624,1756401056341,-267.0,0.00020832,2]
[381909625,1756401056350,-267.0,0.00020872,2]
[381909626,1756401056361,-157.01787417,0.00020875,2]
[381909627,1756401056370,-500.0,0.0002089,2]
[381909628,1756401056380,-420.0,0.00020899,2]
[381909629,1756401056389,-500.0,0.000209,7]
[381909630,1756401056398,-195.31,0.000209,7]
[381909631,1756401056408,-647.0,0.000209,2]
[381909632,1756401056418,-4181.54536781,0.0002098,2]
[381909633,1756401056428,-3000.0,0.00021,2]
[381909634,1756401056437,-189.860335,0.00021,5]
[381909635,1756401056448,-400.0,0.00021,2]
[381909636,1756401056457,-3000.0,0.0002101,2]
[381909637,1756401056466,-3000.0,0.0002102,2]
[381909638,1756401056475,-173.72917618,0.0002102,2]
[381909639,1756401056485,-151.0,0.0002102,2]
[381909640,1756401056496,-151.0,0.0002102,2]
[381909641,1756401056505,-151.0,0.0002102,2]
[381909642,1756401056515,-280.746639,0.0002102,2]
[381909643,1756401056524,-151.0,0.0002102,2]
[381909644,1756401056534,-151.0,0.0002102,2]
[381909645,1756401056543,-151.0,0.0002102,2]
[381909646,1756401056552,-600.0,0.00021024,2]
[381909647,1756401056562,-3000.0,0.0002103,2]
[381909648,1756401056572,-3000.0,0.0002104,2]
[381909649,1756401056581,-3000.0,0.0002105,2]
[381909650,1756401056591,-730.0,0.00021051,2]
[381909651,1756401056600,-3000.0,0.0002106,2]
[381909652,1756401056609,-810.22595781,0.00021068,2]
[381909653,1756401056619,-3000.0,0.0002107,2]
[381909654,1756401056630,-151.0,0.0002107,2]